[Event "Titled Tuesday Blitz June 13 Late 2023"]
[White "rionelG"]
[Black "Harriott, Tyrell"]
[BlackFideId "2086484"]
[WhiteElo "2211"]
[BlackElo "2098"]
[Result "1/2-1/2"]
[Round "4"]
[TimeControl "180+2"]
[Date "2023.06.13"]
[WhiteClock "0:00:05"]
[BlackClock "0:00:37"]
[Board "170"]

1. e4 {[%clk 0:02:20]}  d5 {[%clk 0:02:59]} 2. exd5 {[%clk 0:02:19]}  Nf6 {[%clk 0:02:59]} 3. d4 {[%clk 0:02:19]}  Qxd5 {[%clk 0:02:59]} 4. Nc3 {[%clk 0:02:17]}  Qa5 {[%clk 0:02:59]} 5. Bc4 {[%clk 0:02:16]}  c6 {[%clk 0:02:57]} 6. Bd2 {[%clk 0:02:16]}  Bf5 {[%clk 0:02:56]} 7. Qe2 {[%clk 0:02:12]}  Nbd7 {[%clk 0:02:53]} 8. f3 {[%clk 0:02:02]}  e6 {[%clk 0:02:52]} 9. g4 {[%clk 0:02:02]}  Bg6 {[%clk 0:02:51]} 10. h4 {[%clk 0:02:02]}  h5 {[%clk 0:02:50]} 11. g5 {[%clk 0:02:02]}  Ng8 {[%clk 0:02:49]} 12. O-O-O {[%clk 0:01:52]}  O-O-O {[%clk 0:02:48]} 13. Nh3 {[%clk 0:01:46]}  Bb4 {[%clk 0:02:42]} 14. Nf4 {[%clk 0:01:43]}  Bf5 {[%clk 0:02:40]} 15. a3 {[%clk 0:01:42]}  Bxa3 {[%clk 0:02:26]} 16. bxa3 {[%clk 0:01:35]}  Qxa3+ {[%clk 0:02:27]} 17. Kb1 {[%clk 0:01:35]}  Nb6 {[%clk 0:02:25]} 18. Na2 {[%clk 0:01:28]}  Rxd4 {[%clk 0:02:18]} 19. Bb4 {[%clk 0:01:27]}  Rxd1+ {[%clk 0:01:59]} 20. Rxd1 {[%clk 0:01:28]}  Qa4 {[%clk 0:01:59]} 21. Bd3 {[%clk 0:00:53]}  g6 {[%clk 0:01:38]} 22. Bxf5 {[%clk 0:00:49]}  gxf5 {[%clk 0:01:39]} 23. Qd3 {[%clk 0:00:40]}  Ne7 {[%clk 0:01:35]} 24. Bxe7 {[%clk 0:00:37]}  Qxf4 {[%clk 0:01:34]} 25. Qa3 {[%clk 0:00:16]}  Re8 {[%clk 0:01:09]} 26. Bd6 {[%clk 0:00:15]}  Qa4 {[%clk 0:01:07]} 27. Qxa4 {[%clk 0:00:14]}  Nxa4 {[%clk 0:01:08]} 28. Be5 {[%clk 0:00:13]}  b5 {[%clk 0:01:05]} 29. Nc3 {[%clk 0:00:13]}  Nb6 {[%clk 0:01:05]} 30. Ne2 {[%clk 0:00:13]}  Nd5 {[%clk 0:01:05]} 31. Nf4 {[%clk 0:00:13]}  Nb6 {[%clk 0:01:03]} 32. Nxh5 {[%clk 0:00:13]}  Nd7 {[%clk 0:01:01]} 33. f4 {[%clk 0:00:12]}  Nxe5 {[%clk 0:01:00]} 34. fxe5 {[%clk 0:00:13]}  Rh8 {[%clk 0:01:01]} 35. Nf6 {[%clk 0:00:12]}  Rxh4 {[%clk 0:01:02]} 36. Rd7 {[%clk 0:00:11]}  Rh1+ {[%clk 0:01:00]} 37. Kb2 {[%clk 0:00:11]}  Rg1 {[%clk 0:01:01]} 38. Rxa7 {[%clk 0:00:09]}  Rxg5 {[%clk 0:01:00]} 39. Ra8+ {[%clk 0:00:09]}  Kc7 {[%clk 0:00:59]} 40. Rf8 {[%clk 0:00:08]}  Kb6 {[%clk 0:00:59]} 41. Rxf7 {[%clk 0:00:09]}  Rg1 {[%clk 0:00:58]} 42. Re7 {[%clk 0:00:08]}  f4 {[%clk 0:00:58]} 43. Rxe6 {[%clk 0:00:08]}  f3 {[%clk 0:00:58]} 44. Ne4 {[%clk 0:00:06]}  Re1 {[%clk 0:00:57]} 45. Nd2 {[%clk 0:00:05]}  f2 {[%clk 0:00:56]} 46. Rf6 {[%clk 0:00:06]}  Re2 {[%clk 0:00:56]} 47. Nb3 {[%clk 0:00:05]}  b4 {[%clk 0:00:53]} 48. Nd4 {[%clk 0:00:05]}  Rd2 {[%clk 0:00:51]} 49. Nb3 {[%clk 0:00:05]}  Re2 {[%clk 0:00:51]} 50. Nd4 {[%clk 0:00:04]}  Re4 {[%clk 0:00:51]} 51. Nxc6 {[%clk 0:00:04]}  Kc5 {[%clk 0:00:46]} 52. Ne7 {[%clk 0:00:04]}  Rxe5 {[%clk 0:00:46]} 53. Nc8 {[%clk 0:00:02]}  Re8 {[%clk 0:00:44]} 54. Na7 {[%clk 0:00:02]}  Ra8 {[%clk 0:00:44]} 55. Nc6 {[%clk 0:00:02]}  Ra6 {[%clk 0:00:43]} 56. Rxf2 {[%clk 0:00:01]}  Rxc6 {[%clk 0:00:43]} 57. Rf5+ {[%clk 0:00:02]}  Kc4 {[%clk 0:00:43]} 58. Rf4+ {[%clk 0:00:03]}  Kb5 {[%clk 0:00:43]} 59. Kb3 {[%clk 0:00:03]}  Rc3+ {[%clk 0:00:43]} 60. Kb2 {[%clk 0:00:04]}  Ka4 {[%clk 0:00:44]} 61. Rf5 {[%clk 0:00:04]}  Rh3 {[%clk 0:00:43]} 62. Rf8 {[%clk 0:00:04]}  Kb5 {[%clk 0:00:42]} 63. Rb8+ {[%clk 0:00:04]}  Kc5 {[%clk 0:00:42]} 64. Rc8+ {[%clk 0:00:05]}  Kb5 {[%clk 0:00:42]} 65. Rb8+ {[%clk 0:00:06]}  Ka5 {[%clk 0:00:43]} 66. Ra8+ {[%clk 0:00:07]}  Kb5 {[%clk 0:00:42]} 67. Rd8 {[%clk 0:00:07]}  Rh6 {[%clk 0:00:41]} 68. Rd5+ {[%clk 0:00:07]}  Kc4 {[%clk 0:00:41]} 69. Rd8 {[%clk 0:00:08]}  Rc6 {[%clk 0:00:40]} 70. Rf8 {[%clk 0:00:07]}  Rc5 {[%clk 0:00:40]} 71. Rf4+ {[%clk 0:00:07]}  Kb5 {[%clk 0:00:41]} 72. Kb3 {[%clk 0:00:08]}  Rc3+ {[%clk 0:00:40]} 73. Kb2 {[%clk 0:00:09]}  Rg3 {[%clk 0:00:40]} 74. Rf8 {[%clk 0:00:08]}  Rg5 {[%clk 0:00:39]} 75. Rb8+ {[%clk 0:00:08]}  Ka4 {[%clk 0:00:39]} 76. Ra8+ {[%clk 0:00:08]}  Kb5 {[%clk 0:00:39]} 77. Rb8+ {[%clk 0:00:08]}  Kc4 {[%clk 0:00:39]} 78. Rc8+ {[%clk 0:00:08]}  Kd5 {[%clk 0:00:38]} 79. Kb3 {[%clk 0:00:08]}  Rg4 {[%clk 0:00:38]} 80. Rb8 {[%clk 0:00:06]}  Kc5 {[%clk 0:00:37]} 81. Rc8+ {[%clk 0:00:06]}  Kb5 {[%clk 0:00:38]} 82. Rb8+ {[%clk 0:00:06]}  Ka5 {[%clk 0:00:38]} 83. Ra8+ {[%clk 0:00:06]}  Kb5 {[%clk 0:00:38]} 84. Rb8+ {[%clk 0:00:07]}  Kc5 {[%clk 0:00:37]} 85. Rc8+ {[%clk 0:00:07]}  Kb5 {[%clk 0:00:37]} 86. Rb8+ {[%clk 0:00:05]} 1/2-1/2


[Site "https://www.chess.com"]

[Event "Titled Tuesday Blitz June 13 Late 2023"]
[White "Cluke86"]
[Black "KorolDimitriy75"]
[WhiteElo "2207"]
[BlackElo "2413"]
[Result "0-1"]
[Round "4"]
[TimeControl "180+2"]
[Date "2023.06.13"]
[WhiteClock "0:00:07"]
[BlackClock "0:00:05"]
[Board "171"]

1. e4 {[%clk 0:03:00]}  c5 {[%clk 0:02:57]} 2. Nc3 {[%clk 0:03:00]}  g6 {[%clk 0:02:56]} 3. f4 {[%clk 0:03:00]}  Bg7 {[%clk 0:02:57]} 4. Nf3 {[%clk 0:03:01]}  Nc6 {[%clk 0:02:58]} 5. a4 {[%clk 0:03:01]}  e6 {[%clk 0:02:56]} 6. e5 {[%clk 0:03:01]}  d5 {[%clk 0:02:37]} 7. d4 {[%clk 0:02:59]}  cxd4 {[%clk 0:02:27]} 8. Nb5 {[%clk 0:02:58]}  Nge7 {[%clk 0:02:28]} 9. Nd6+ {[%clk 0:02:57]}  Kf8 {[%clk 0:02:27]} 10. Ng5 {[%clk 0:02:58]}  Nf5 {[%clk 0:01:49]} 11. Ngxf7 {[%clk 0:02:51]}  Qh4+ {[%clk 0:01:47]} 12. Ke2 {[%clk 0:02:23]}  Nxd6 {[%clk 0:01:35]} 13. Nxd6 {[%clk 0:02:21]}  b6 {[%clk 0:01:19]} 14. Nxc8 {[%clk 0:02:08]}  Rxc8 {[%clk 0:01:18]} 15. Bd2 {[%clk 0:02:05]}  d3+ {[%clk 0:00:38]} 16. Kxd3 {[%clk 0:01:53]}  Nxe5+ {[%clk 0:00:38]} 17. Ke3 {[%clk 0:01:38]}  Ng4+ {[%clk 0:00:35]} 18. Kf3 {[%clk 0:01:33]}  Nxh2+ {[%clk 0:00:14]} 19. Ke2 {[%clk 0:00:59]}  Qg4+ {[%clk 0:00:13]} 20. Ke3 {[%clk 0:00:53]}  Qg3+ {[%clk 0:00:10]} 21. Ke2 {[%clk 0:00:50]}  Bxb2 {[%clk 0:00:08]} 22. Rb1 {[%clk 0:00:42]}  Bd4 {[%clk 0:00:08]} 23. Qe1 {[%clk 0:00:35]}  Qg4+ {[%clk 0:00:06]} 24. Kd3 {[%clk 0:00:34]}  Nxf1 {[%clk 0:00:04]} 25. Rxf1 {[%clk 0:00:30]}  Bf6 {[%clk 0:00:04]} 26. g3 {[%clk 0:00:27]}  Qf5+ {[%clk 0:00:04]} 27. Ke2 {[%clk 0:00:25]}  Rxc2 {[%clk 0:00:04]} 28. Rc1 {[%clk 0:00:20]}  Kg7 {[%clk 0:00:04]} 29. Rxc2 {[%clk 0:00:19]}  Qxc2 {[%clk 0:00:05]} 30. Qf2 {[%clk 0:00:17]}  Re8 {[%clk 0:00:04]} 31. Rc1 {[%clk 0:00:15]}  Qxa4 {[%clk 0:00:04]} 32. Rc7+ {[%clk 0:00:15]}  Re7 {[%clk 0:00:03]} 33. Rxe7+ {[%clk 0:00:11]}  Bxe7 {[%clk 0:00:04]} 34. Bc3+ {[%clk 0:00:10]}  Bf6 {[%clk 0:00:04]} 35. Bxf6+ {[%clk 0:00:09]}  Kxf6 {[%clk 0:00:05]} 36. Qe3 {[%clk 0:00:07]}  Qe4 {[%clk 0:00:05]} 0-1


[Site "https://www.chess.com"]

[Event "Titled Tuesday Blitz June 13 Late 2023"]
[White "Mazurkiewicz, Michal"]
[Black "Novikova, Margarita"]
[WhiteFideId "1124943"]
[BlackFideId "14109689"]
[WhiteElo "2063"]
[BlackElo "2013"]
[Result "1-0"]
[Round "4"]
[TimeControl "180+2"]
[Date "2023.06.13"]
[WhiteClock "0:02:26"]
[BlackClock "0:01:14"]
[Board "173"]

1. e4 {[%clk 0:02:59]}  d5 {[%clk 0:02:59]} 2. exd5 {[%clk 0:02:59]}  Qxd5 {[%clk 0:03:00]} 3. d3 {[%clk 0:02:59]}  e5 {[%clk 0:02:59]} 4. Nc3 {[%clk 0:02:59]}  Qd8 {[%clk 0:02:58]} 5. g3 {[%clk 0:02:59]}  Nf6 {[%clk 0:02:58]} 6. Nf3 {[%clk 0:02:59]}  Bd6 {[%clk 0:02:56]} 7. Bg2 {[%clk 0:02:59]}  O-O {[%clk 0:02:55]} 8. O-O {[%clk 0:03:00]}  Nc6 {[%clk 0:02:54]} 9. Re1 {[%clk 0:03:00]}  Re8 {[%clk 0:02:53]} 10. h3 {[%clk 0:02:45]}  a6 {[%clk 0:02:52]} 11. Ng5 {[%clk 0:02:40]}  h6 {[%clk 0:02:50]} 12. Nge4 {[%clk 0:02:40]}  Nxe4 {[%clk 0:02:50]} 13. Nxe4 {[%clk 0:02:41]}  Bb4 {[%clk 0:02:47]} 14. c3 {[%clk 0:02:40]}  Bf8 {[%clk 0:02:47]} 15. Be3 {[%clk 0:02:40]}  f5 {[%clk 0:02:41]} 16. Nc5 {[%clk 0:02:35]}  f4 {[%clk 0:02:36]} 17. Nxb7 {[%clk 0:02:33]}  Bxb7 {[%clk 0:02:28]} 18. Qb3+ {[%clk 0:02:33]}  Kh8 {[%clk 0:02:19]} 19. Qxb7 {[%clk 0:02:32]}  Na5 {[%clk 0:02:10]} 20. Qxa8 {[%clk 0:02:27]}  Qxa8 {[%clk 0:01:33]} 21. Bxa8 {[%clk 0:02:26]}  fxe3 {[%clk 0:01:31]} 22. Be4 {[%clk 0:02:26]}  exf2+ {[%clk 0:01:31]} 23. Kxf2 {[%clk 0:02:26]}  Bc5+ {[%clk 0:01:14]} 24. Ke2 {[%clk 0:02:26]} 1-0


[Site "https://www.chess.com"]

[Event "Titled Tuesday Blitz June 13 Late 2023"]
[White "Ochkoos, Jura"]
[Black "Fuentes Godoy, Lilia Ivonne"]
[WhiteFideId "2601214"]
[BlackFideId "5104130"]
[WhiteElo "2139"]
[BlackElo "2024"]
[Result "1-0"]
[Round "4"]
[TimeControl "180+2"]
[Date "2023.06.13"]
[WhiteClock "0:00:33"]
[BlackClock "0:00:00"]
[Board "174"]

1. e4 {[%clk 0:03:00]}  c5 {[%clk 0:02:58]} 2. Nf3 {[%clk 0:03:00]}  Nc6 {[%clk 0:02:58]} 3. d4 {[%clk 0:03:01]}  cxd4 {[%clk 0:02:58]} 4. Nxd4 {[%clk 0:03:02]}  e5 {[%clk 0:02:59]} 5. Nb5 {[%clk 0:03:02]}  a6 {[%clk 0:03:00]} 6. Nd6+ {[%clk 0:03:02]}  Bxd6 {[%clk 0:03:00]} 7. Qxd6 {[%clk 0:03:02]}  Qe7 {[%clk 0:03:01]} 8. Qd1 {[%clk 0:03:01]}  Nf6 {[%clk 0:02:56]} 9. Nc3 {[%clk 0:03:01]}  d6 {[%clk 0:02:56]} 10. Bg5 {[%clk 0:03:01]}  Be6 {[%clk 0:02:56]} 11. Bd3 {[%clk 0:02:53]}  O-O {[%clk 0:02:55]} 12. O-O {[%clk 0:02:50]}  h6 {[%clk 0:02:52]} 13. Bh4 {[%clk 0:02:51]}  Nd4 {[%clk 0:02:44]} 14. Ne2 {[%clk 0:02:46]}  Nxe2+ {[%clk 0:02:25]} 15. Qxe2 {[%clk 0:02:44]}  Rac8 {[%clk 0:02:09]} 16. Bg3 {[%clk 0:02:43]}  Nd7 {[%clk 0:02:07]} 17. f4 {[%clk 0:02:41]}  f6 {[%clk 0:02:06]} 18. b4 {[%clk 0:02:31]}  Rc3 {[%clk 0:02:03]} 19. Be1 {[%clk 0:02:27]}  Rc7 {[%clk 0:02:02]} 20. a3 {[%clk 0:02:22]}  Rfc8 {[%clk 0:02:01]} 21. Rd1 {[%clk 0:02:09]}  Nb6 {[%clk 0:01:52]} 22. fxe5 {[%clk 0:02:06]}  dxe5 {[%clk 0:01:51]} 23. Bf2 {[%clk 0:02:06]}  Na4 {[%clk 0:01:49]} 24. Rde1 {[%clk 0:01:51]}  b5 {[%clk 0:01:29]} 25. Qf3 {[%clk 0:01:44]}  Bc4 {[%clk 0:01:26]} 26. Qg4 {[%clk 0:01:42]}  Rd8 {[%clk 0:01:21]} 27. Re3 {[%clk 0:01:41]}  Bxd3 {[%clk 0:01:04]} 28. cxd3 {[%clk 0:01:40]}  Qd7 {[%clk 0:01:00]} 29. Qg6 {[%clk 0:01:33]}  Qf7 {[%clk 0:00:49]} 30. Qg3 {[%clk 0:01:29]}  Qa2 {[%clk 0:00:41]} 31. Rf3 {[%clk 0:01:28]}  Rc6 {[%clk 0:00:35]} 32. Be3 {[%clk 0:01:24]}  Kh7 {[%clk 0:00:29]} 33. d4 {[%clk 0:01:13]}  exd4 {[%clk 0:00:27]} 34. Bf4 {[%clk 0:01:14]}  Rc2 {[%clk 0:00:20]} 35. e5 {[%clk 0:01:11]}  d3 {[%clk 0:00:13]} 36. exf6 {[%clk 0:01:09]}  gxf6 {[%clk 0:00:14]} 37. Bxh6 {[%clk 0:01:06]}  Qg8 {[%clk 0:00:14]} 38. Qh3 {[%clk 0:00:58]}  Qxg2+ {[%clk 0:00:04]} 39. Qxg2 {[%clk 0:00:58]}  Rxg2+ {[%clk 0:00:05]} 40. Kxg2 {[%clk 0:00:58]}  Kxh6 {[%clk 0:00:06]} 41. Rg3 {[%clk 0:00:53]}  Rd6 {[%clk 0:00:04]} 42. Rd1 {[%clk 0:00:51]}  d2 {[%clk 0:00:04]} 43. Rb3 {[%clk 0:00:48]}  f5 {[%clk 0:00:03]} 44. Kf2 {[%clk 0:00:48]}  Kg5 {[%clk 0:00:03]} 45. Ke2 {[%clk 0:00:48]}  f4 {[%clk 0:00:04]} 46. Rxd2 {[%clk 0:00:48]}  Re6+ {[%clk 0:00:04]} 47. Kf2 {[%clk 0:00:48]}  Nb6 {[%clk 0:00:04]} 48. Rd4 {[%clk 0:00:43]}  Kf5 {[%clk 0:00:04]} 49. Rf3 {[%clk 0:00:42]}  Re4 {[%clk 0:00:03]} 50. Rd6 {[%clk 0:00:38]}  Nc4 {[%clk 0:00:02]} 51. Rxa6 {[%clk 0:00:37]}  Nd2 {[%clk 0:00:02]} 52. Rd3 {[%clk 0:00:36]}  Nc4 {[%clk 0:00:02]} 53. Rd5+ {[%clk 0:00:34]}  Ne5 {[%clk 0:00:02]} 54. Rxb5 {[%clk 0:00:33]}  Rc4 {[%clk 0:00:02]} 55. Raa5 {[%clk 0:00:33]}  Rc2+ {[%clk 0:00:00]} 56. Ke1 {[%clk 0:00:33]} 1-0


[Site "https://www.chess.com"]

[Event "Titled Tuesday Blitz June 13 Late 2023"]
[White "Fernandez Hernandez, Gerardo"]
[Black "el_sporco"]
[WhiteFideId "2207400"]
[WhiteElo "2179"]
[BlackElo "2369"]
[Result "1-0"]
[Round "4"]
[TimeControl "180+2"]
[Date "2023.06.13"]
[WhiteClock "0:00:53"]
[BlackClock "0:00:13"]
[Board "175"]

1. e4 {[%clk 0:03:00]}  c5 {[%clk 0:02:59]} 2. d3 {[%clk 0:03:00]}  g6 {[%clk 0:02:58]} 3. g3 {[%clk 0:03:01]}  Bg7 {[%clk 0:02:58]} 4. Bg2 {[%clk 0:03:01]}  d6 {[%clk 0:02:59]} 5. f4 {[%clk 0:03:02]}  Nc6 {[%clk 0:03:00]} 6. Nf3 {[%clk 0:03:02]}  e6 {[%clk 0:03:00]} 7. O-O {[%clk 0:03:02]}  Nge7 {[%clk 0:03:01]} 8. c3 {[%clk 0:03:02]}  O-O {[%clk 0:03:01]} 9. Be3 {[%clk 0:03:03]}  f5 {[%clk 0:03:01]} 10. Nbd2 {[%clk 0:03:01]}  Rb8 {[%clk 0:03:00]} 11. exf5 {[%clk 0:02:55]}  gxf5 {[%clk 0:02:47]} 12. Bf2 {[%clk 0:02:51]}  b5 {[%clk 0:02:47]} 13. Re1 {[%clk 0:02:46]}  b4 {[%clk 0:02:43]} 14. Qc2 {[%clk 0:02:38]}  bxc3 {[%clk 0:02:34]} 15. bxc3 {[%clk 0:02:38]}  Qa5 {[%clk 0:02:07]} 16. Rac1 {[%clk 0:02:27]}  Nd5 {[%clk 0:01:44]} 17. Nc4 {[%clk 0:02:16]}  Qc7 {[%clk 0:01:33]} 18. Ng5 {[%clk 0:02:03]}  Nxc3 {[%clk 0:01:12]} 19. Nxe6 {[%clk 0:01:58]}  Bxe6 {[%clk 0:01:09]} 20. Rxe6 {[%clk 0:01:59]}  Nb4 {[%clk 0:01:08]} 21. Qd2 {[%clk 0:01:46]}  Nbxa2 {[%clk 0:01:04]} 22. Rce1 {[%clk 0:01:35]}  Nb4 {[%clk 0:01:03]} 23. Re7 {[%clk 0:01:32]}  Qxe7 {[%clk 0:00:41]} 24. Rxe7 {[%clk 0:01:31]}  Nbd5 {[%clk 0:00:41]} 25. Bxd5+ {[%clk 0:01:11]}  Nxd5 {[%clk 0:00:40]} 26. Rd7 {[%clk 0:01:07]}  Bc3 {[%clk 0:00:17]} 27. Qe2 {[%clk 0:00:57]}  Rfe8 {[%clk 0:00:16]} 28. Qh5 {[%clk 0:00:55]}  Bg7 {[%clk 0:00:13]} 29. Qf7+ {[%clk 0:00:53]} 1-0


[Site "https://www.chess.com"]

[Event "Titled Tuesday Blitz June 13 Late 2023"]
[White "Sariego Figueredo, Wilfredo"]
[Black "Omariev, Maksim"]
[WhiteFideId "3500080"]
[BlackFideId "4193423"]
[WhiteElo "2309"]
[BlackElo "2347"]
[Result "1-0"]
[Round "4"]
[TimeControl "180+2"]
[Date "2023.06.13"]
[WhiteClock "0:00:29"]
[BlackClock "0:00:11"]
[Board "176"]

1. d4 {[%clk 0:03:00]}  h6 {[%clk 0:02:11]} 2. Bf4 {[%clk 0:02:59]}  g5 {[%clk 0:02:08]} 3. Bg3 {[%clk 0:02:57]}  Bg7 {[%clk 0:02:07]} 4. e4 {[%clk 0:02:50]}  d6 {[%clk 0:02:06]} 5. Nc3 {[%clk 0:02:47]}  Nc6 {[%clk 0:02:04]} 6. Bb5 {[%clk 0:02:38]}  Bd7 {[%clk 0:02:03]} 7. Bxc6 {[%clk 0:02:36]}  bxc6 {[%clk 0:01:59]} 8. Nge2 {[%clk 0:02:33]}  Rb8 {[%clk 0:01:59]} 9. Rb1 {[%clk 0:02:32]}  Nf6 {[%clk 0:01:56]} 10. h4 {[%clk 0:02:30]}  Nh5 {[%clk 0:01:49]} 11. hxg5 {[%clk 0:02:25]}  hxg5 {[%clk 0:01:41]} 12. Qd2 {[%clk 0:02:15]}  Nxg3 {[%clk 0:01:37]} 13. Rxh8+ {[%clk 0:02:16]}  Bxh8 {[%clk 0:01:37]} 14. Nxg3 {[%clk 0:02:17]}  e6 {[%clk 0:01:35]} 15. Qd1 {[%clk 0:02:07]}  Qf6 {[%clk 0:01:33]} 16. Nce2 {[%clk 0:02:02]}  c5 {[%clk 0:01:16]} 17. c3 {[%clk 0:01:57]}  cxd4 {[%clk 0:01:14]} 18. cxd4 {[%clk 0:01:58]}  c5 {[%clk 0:01:02]} 19. dxc5 {[%clk 0:01:50]}  dxc5 {[%clk 0:01:02]} 20. b3 {[%clk 0:01:49]}  Bc6 {[%clk 0:00:46]} 21. Qd6 {[%clk 0:01:45]}  Rc8 {[%clk 0:00:29]} 22. Qxc5 {[%clk 0:01:42]}  a6 {[%clk 0:00:22]} 23. Qb6 {[%clk 0:01:39]}  Bb5 {[%clk 0:00:20]} 24. Qe3 {[%clk 0:01:13]}  Qe5 {[%clk 0:00:16]} 25. Qd2 {[%clk 0:00:56]}  Bf6 {[%clk 0:00:15]} 26. a4 {[%clk 0:00:53]}  Bc6 {[%clk 0:00:11]} 27. f3 {[%clk 0:00:49]}  Be7 {[%clk 0:00:11]} 28. Kf1 {[%clk 0:00:47]}  a5 {[%clk 0:00:10]} 29. Qe3 {[%clk 0:00:43]}  Bc5 {[%clk 0:00:09]} 30. Qc3 {[%clk 0:00:38]}  Qxc3 {[%clk 0:00:03]} 31. Nxc3 {[%clk 0:00:39]}  Bd4 {[%clk 0:00:01]} 32. Nce2 {[%clk 0:00:38]}  Be5 {[%clk 0:00:02]} 33. Rd1 {[%clk 0:00:37]}  Bb7 {[%clk 0:00:02]} 34. Kf2 {[%clk 0:00:33]}  Ba6 {[%clk 0:00:02]} 35. Rc1 {[%clk 0:00:32]}  Rd8 {[%clk 0:00:02]} 36. Rc2 {[%clk 0:00:31]}  Ke7 {[%clk 0:00:02]} 37. Rc6 {[%clk 0:00:30]}  Rd6 {[%clk 0:00:02]} 38. Rc7+ {[%clk 0:00:30]}  Rd7 {[%clk 0:00:03]} 39. Rc6 {[%clk 0:00:30]}  Rd6 {[%clk 0:00:03]} 40. Rc5 {[%clk 0:00:30]}  Bf6 {[%clk 0:00:02]} 41. Rxa5 {[%clk 0:00:30]}  Bc8 {[%clk 0:00:02]} 42. Ra7+ {[%clk 0:00:29]}  Bd7 {[%clk 0:00:02]} 43. b4 {[%clk 0:00:28]}  Be5 {[%clk 0:00:02]} 44. b5 {[%clk 0:00:27]}  Rd2 {[%clk 0:00:02]} 45. b6 {[%clk 0:00:24]}  Bd4+ {[%clk 0:00:01]} 46. Ke1 {[%clk 0:00:23]}  Bxb6 {[%clk 0:00:01]} 47. Rb7 {[%clk 0:00:22]}  Be3 {[%clk 0:00:01]} 48. Rb3 {[%clk 0:00:22]}  Bf4 {[%clk 0:00:01]} 49. Nxf4 {[%clk 0:00:21]}  Ra2 {[%clk 0:00:02]} 50. Nfe2 {[%clk 0:00:21]}  Rxa4 {[%clk 0:00:01]} 51. Rd3 {[%clk 0:00:21]}  Ra1+ {[%clk 0:00:02]} 52. Kf2 {[%clk 0:00:21]}  Ra2 {[%clk 0:00:02]} 53. Rd1 {[%clk 0:00:20]}  f5 {[%clk 0:00:03]} 54. exf5 {[%clk 0:00:20]}  exf5 {[%clk 0:00:04]} 55. Kf1 {[%clk 0:00:18]}  Bb5 {[%clk 0:00:04]} 56. Re1 {[%clk 0:00:18]}  f4 {[%clk 0:00:04]} 57. Ne4 {[%clk 0:00:19]}  g4 {[%clk 0:00:04]} 58. Kf2 {[%clk 0:00:19]}  g3+ {[%clk 0:00:04]} 59. Kf1 {[%clk 0:00:19]}  Ke6 {[%clk 0:00:05]} 60. Nc3 {[%clk 0:00:19]}  Bxe2+ {[%clk 0:00:04]} 61. Rxe2+ {[%clk 0:00:18]}  Rxe2 {[%clk 0:00:04]} 62. Kxe2 {[%clk 0:00:19]}  Ke5 {[%clk 0:00:05]} 63. Kd3 {[%clk 0:00:20]}  Kf5 {[%clk 0:00:05]} 64. Ne2 {[%clk 0:00:20]}  Kg5 {[%clk 0:00:05]} 65. Ke4 {[%clk 0:00:20]}  Kh4 {[%clk 0:00:05]} 66. Kxf4 {[%clk 0:00:21]}  Kh5 {[%clk 0:00:06]} 67. Nxg3+ {[%clk 0:00:21]}  Kh4 {[%clk 0:00:06]} 68. Nf5+ {[%clk 0:00:22]}  Kh5 {[%clk 0:00:06]} 69. g4+ {[%clk 0:00:23]}  Kg6 {[%clk 0:00:06]} 70. g5 {[%clk 0:00:23]}  Kh5 {[%clk 0:00:06]} 71. Ng3+ {[%clk 0:00:22]}  Kg6 {[%clk 0:00:06]} 72. Kg4 {[%clk 0:00:22]}  Kf7 {[%clk 0:00:06]} 73. f4 {[%clk 0:00:22]}  Kg6 {[%clk 0:00:07]} 74. f5+ {[%clk 0:00:23]}  Kg7 {[%clk 0:00:07]} 75. Nh5+ {[%clk 0:00:23]}  Kf7 {[%clk 0:00:07]} 76. g6+ {[%clk 0:00:23]}  Ke7 {[%clk 0:00:07]} 77. Kg5 {[%clk 0:00:24]}  Kf8 {[%clk 0:00:07]} 78. f6 {[%clk 0:00:24]}  Kg8 {[%clk 0:00:08]} 79. Nf4 {[%clk 0:00:24]}  Kf8 {[%clk 0:00:07]} 80. Kh6 {[%clk 0:00:24]}  Ke8 {[%clk 0:00:07]} 81. g7 {[%clk 0:00:24]}  Kf7 {[%clk 0:00:08]} 82. Kh7 {[%clk 0:00:24]}  Kxf6 {[%clk 0:00:08]} 83. g8=Q {[%clk 0:00:24]}  Kf5 {[%clk 0:00:09]} 84. Qg6+ {[%clk 0:00:24]}  Kxf4 {[%clk 0:00:09]} 85. Qh5 {[%clk 0:00:25]}  Kg3 {[%clk 0:00:09]} 86. Kg6 {[%clk 0:00:24]}  Kf4 {[%clk 0:00:10]} 87. Qf5+ {[%clk 0:00:24]}  Ke3 {[%clk 0:00:10]} 88. Qg4 {[%clk 0:00:24]}  Kd3 {[%clk 0:00:10]} 89. Kf5 {[%clk 0:00:24]}  Ke3 {[%clk 0:00:10]} 90. Qe4+ {[%clk 0:00:24]}  Kd2 {[%clk 0:00:10]} 91. Qf3 {[%clk 0:00:25]}  Kc2 {[%clk 0:00:10]} 92. Ke4 {[%clk 0:00:25]}  Kd2 {[%clk 0:00:11]} 93. Qd3+ {[%clk 0:00:26]}  Kc1 {[%clk 0:00:11]} 94. Qe2 {[%clk 0:00:26]}  Kb1 {[%clk 0:00:11]} 95. Kd3 {[%clk 0:00:27]}  Ka1 {[%clk 0:00:11]} 96. Kc3 {[%clk 0:00:28]}  Kb1 {[%clk 0:00:11]} 97. Qb2# {[%clk 0:00:29]} 1-0


[Site "https://www.chess.com"]

[Event "Titled Tuesday Blitz June 13 Late 2023"]
[White "Gerbelli Neto, Eduardo"]
[Black "LionKing2367890"]
[WhiteFideId "2103281"]
[WhiteElo "2178"]
[BlackElo "2142"]
[Result "1-0"]
[Round "4"]
[TimeControl "180+2"]
[Date "2023.06.13"]
[WhiteClock "0:02:07"]
[BlackClock "0:02:08"]
[Board "177"]

1. e4 {[%clk 0:02:53]}  e5 {[%clk 0:03:00]} 2. Nf3 {[%clk 0:02:52]}  Nc6 {[%clk 0:03:00]} 3. d4 {[%clk 0:02:52]}  exd4 {[%clk 0:03:00]} 4. Bc4 {[%clk 0:02:53]}  Nf6 {[%clk 0:03:00]} 5. e5 {[%clk 0:02:53]}  Ng4 {[%clk 0:02:59]} 6. Bf4 {[%clk 0:02:45]}  g5 {[%clk 0:02:43]} 7. Bxg5 {[%clk 0:02:44]}  Be7 {[%clk 0:02:43]} 8. Bf4 {[%clk 0:02:45]}  d5 {[%clk 0:02:40]} 9. exd6 {[%clk 0:02:36]}  Bxd6 {[%clk 0:02:40]} 10. Qe2+ {[%clk 0:02:34]}  Qe7 {[%clk 0:02:37]} 11. Bxd6 {[%clk 0:02:32]}  Qxe2+ {[%clk 0:02:33]} 12. Bxe2 {[%clk 0:02:30]}  cxd6 {[%clk 0:02:33]} 13. Na3 {[%clk 0:02:22]}  Nge5 {[%clk 0:02:32]} 14. O-O-O {[%clk 0:02:14]}  Bf5 {[%clk 0:02:31]} 15. Nb5 {[%clk 0:02:12]}  O-O {[%clk 0:02:19]} 16. Nfxd4 {[%clk 0:02:11]}  Nxd4 {[%clk 0:02:18]} 17. Rxd4 {[%clk 0:02:08]}  Rac8 {[%clk 0:02:17]} 18. c3 {[%clk 0:02:08]}  Rfe8 {[%clk 0:02:08]} 19. Nxd6 {[%clk 0:02:07]} 1-0


[Site "https://www.chess.com"]